[Event "*** SCC Grand Prix: Titled Tuesday Blitz"]
[Site "Chess.com"]
[Date "2020.10.06"]
[Round "9"]
[White "Kildepiotr"]
[Black "karwowskikacper"]
[Result "1/2-1/2"]
[WhiteElo "2589"]
[BlackElo "2479"]
[TimeControl "180+1"]
[EndTime "11:47:01 PDT"]
[Termination "Game drawn - insufficient material"]

1. Nf3 {[%clk 0:03:00.9]} 1... Nf6 {[%clk 0:02:52.7]} 2. g3 {[%clk 0:03:00.7]}
2... g6 {[%clk 0:02:53.6]} 3. Bg2 {[%clk 0:03:00.9]} 3... Bg7 {[%clk 0:02:52.5]}
4. O-O {[%clk 0:03:01.5]} 4... O-O {[%clk 0:02:53.4]} 5. d4 {[%clk 0:03:02.1]}
5... d6 {[%clk 0:02:50.5]} 6. Nbd2 {[%clk 0:03:02]} 6... Nc6 {[%clk 0:02:48.4]}
7. e4 {[%clk 0:03:02.2]} 7... e5 {[%clk 0:02:48.4]} 8. dxe5 {[%clk 0:03:03.1]}
8... Nxe5 {[%clk 0:02:41.5]} 9. Nxe5 {[%clk 0:03:03.2]} 9... dxe5 {[%clk
0:02:42.4]} 10. Qe2 {[%clk 0:03:03.7]} 10... c6 {[%clk 0:02:41.2]} 11. a4 {[%clk
0:03:03.5]} 11... Qc7 {[%clk 0:02:41.1]} 12. Nc4 {[%clk 0:03:03.7]} 12... Be6
{[%clk 0:02:39.5]} 13. Be3 {[%clk 0:02:59.7]} 13... b6 {[%clk 0:02:35.3]} 14. f3
{[%clk 0:02:56.8]} 14... Rfd8 {[%clk 0:02:28.3]} 15. Rfd1 {[%clk 0:02:56.5]}
15... Rxd1+ {[%clk 0:02:23.5]} 16. Rxd1 {[%clk 0:02:56]} 16... Rd8 {[%clk
0:02:24.4]} 17. Bf1 {[%clk 0:02:52.5]} 17... Bxc4 {[%clk 0:02:17]} 18. Rxd8+
{[%clk 0:02:51.1]} 18... Qxd8 {[%clk 0:02:17.9]} 19. Qxc4 {[%clk 0:02:51.5]}
19... Qd6 {[%clk 0:02:11.5]} 20. Qc3 {[%clk 0:02:33.7]} 20... Nd7 {[%clk
0:02:10.7]} 21. a5 {[%clk 0:02:29.9]} 21... Bf8 {[%clk 0:02:10]} 22. axb6 {[%clk
0:02:28.5]} 22... axb6 {[%clk 0:02:10.9]} 23. Kf2 {[%clk 0:02:23.4]} 23... Qb4
{[%clk 0:02:07.4]} 24. Qxb4 {[%clk 0:02:15.6]} 24... Bxb4 {[%clk 0:02:08.3]} 25.
f4 {[%clk 0:02:13.6]} 25... Bc5 {[%clk 0:01:59.6]} 26. Bh3 {[%clk 0:02:10.4]}
26... exf4 {[%clk 0:01:55.1]} 27. gxf4 {[%clk 0:02:07.8]} 27... Nf6 {[%clk
0:01:52.6]} 28. Kf3 {[%clk 0:02:01.5]} 28... Kf8 {[%clk 0:01:44]} 29. Bxc5+
{[%clk 0:01:58.6]} 29... bxc5 {[%clk 0:01:44.9]} 30. c3 {[%clk 0:01:48.8]} 30...
Ke7 {[%clk 0:01:43.1]} 31. Bf1 {[%clk 0:01:43.6]} 31... Nd7 {[%clk 0:01:39.3]}
32. Bc4 {[%clk 0:01:38.4]} 32... f6 {[%clk 0:01:32.1]} 33. h4 {[%clk 0:01:37.9]}
33... g5 {[%clk 0:01:18.8]} 34. hxg5 {[%clk 0:01:29.5]} 34... fxg5 {[%clk
0:01:18.4]} 35. Bg8 {[%clk 0:01:29.3]} 35... g4+ {[%clk 0:01:06.2]} 36. Ke3
{[%clk 0:01:22.5]} 36... Nf6 {[%clk 0:00:57.1]} 37. Bc4 {[%clk 0:01:20.3]} 37...
h5 {[%clk 0:00:55.1]} 38. f5 {[%clk 0:01:15.7]} 38... g3 {[%clk 0:00:53.6]} 39.
Kf3 {[%clk 0:01:01.3]} 39... Nxe4 {[%clk 0:00:46.4]} 40. Be2 {[%clk 0:00:50.6]}
40... Nd6 {[%clk 0:00:37.8]} 41. Kxg3 {[%clk 0:00:48.3]} 41... Nxf5+ {[%clk
0:00:28.6]} 42. Kf4 {[%clk 0:00:47.9]} 42... Nd6 {[%clk 0:00:26.9]} 43. Bxh5
{[%clk 0:00:43.7]} 43... Nc4 {[%clk 0:00:23.4]} 44. b3 {[%clk 0:00:39.6]} 44...
Na5 {[%clk 0:00:20]} 45. Bd1 {[%clk 0:00:37.6]} 45... Kd6 {[%clk 0:00:20]} 46.
Ke4 {[%clk 0:00:37.3]} 46... Nb7 {[%clk 0:00:18.2]} 47. Bh5 {[%clk 0:00:34.6]}
47... Nd8 {[%clk 0:00:10.2]} 48. Kd3 {[%clk 0:00:31.2]} 48... Nb7 {[%clk
0:00:07.9]} 49. Bg4 {[%clk 0:00:27.4]} 49... Na5 {[%clk 0:00:07.2]} 50. Bd1
{[%clk 0:00:25.9]} 50... c4+ {[%clk 0:00:06.8]} 51. bxc4 {[%clk 0:00:24.5]}
51... Kc5 {[%clk 0:00:07]} 52. Bf3 {[%clk 0:00:22]} 52... Nxc4 {[%clk
0:00:07.1]} 53. Bxc6 {[%clk 0:00:21.6]} 53... Ne5+ {[%clk 0:00:07.3]} 54. Ke4
{[%clk 0:00:21.4]} 54... Nxc6 {[%clk 0:00:08.2]} 55. c4 {[%clk 0:00:22.1]} 55...
Kxc4 {[%clk 0:00:08.7]} 1/2-1/2

[Event "*** SCC Grand Prix: Titled Tuesday Blitz"]
[Site "Chess.com"]
[Date "2020.10.06"]
[Round "9"]
[White "vanea_03"]
[Black "26andrej26"]
[Result "1/2-1/2"]
[WhiteElo "2690"]
[BlackElo "2549"]
[TimeControl "180+1"]
[EndTime "11:47:02 PDT"]
[Termination "Game drawn by repetition"]

1. c4 {[%clk 0:03:00.9]} 1... Nf6 {[%clk 0:02:59.7]} 2. Nc3 {[%clk 0:03:00.5]}
2... d6 {[%clk 0:03:00.6]} 3. d4 {[%clk 0:03:00]} 3... g6 {[%clk 0:03:01.5]} 4.
Nf3 {[%clk 0:02:58.4]} 4... Bg7 {[%clk 0:03:02.4]} 5. e3 {[%clk 0:02:59.1]} 5...
O-O {[%clk 0:03:03.3]} 6. Be2 {[%clk 0:02:59.8]} 6... e5 {[%clk 0:03:03.6]} 7.
O-O {[%clk 0:03:00.5]} 7... exd4 {[%clk 0:03:02.6]} 8. exd4 {[%clk 0:02:57.1]}
8... Re8 {[%clk 0:03:01.6]} 9. h3 {[%clk 0:02:56.8]} 9... Ne4 {[%clk 0:03:01.5]}
10. Bd3 {[%clk 0:02:52.4]} 10... Nxc3 {[%clk 0:02:58.4]} 11. bxc3 {[%clk
0:02:53.3]} 11... Nc6 {[%clk 0:02:57.4]} 12. Bg5 {[%clk 0:02:51.4]} 12... Bf6
{[%clk 0:02:52.3]} 13. Bf4 {[%clk 0:02:44.6]} 13... Ne7 {[%clk 0:02:51.3]} 14.
Rb1 {[%clk 0:02:40.2]} 14... b6 {[%clk 0:02:50.5]} 15. Re1 {[%clk 0:01:58.8]}
15... Bf5 {[%clk 0:02:50.2]} 16. Re2 {[%clk 0:01:51.7]} 16... Qd7 {[%clk
0:02:49.1]} 17. Qc2 {[%clk 0:01:25.5]} 17... Bxd3 {[%clk 0:02:48.3]} 18. Qxd3
{[%clk 0:01:26.4]} 18... Qf5 {[%clk 0:02:47.2]} 19. Qxf5 {[%clk 0:01:26.4]}
19... Nxf5 {[%clk 0:02:48.1]} 20. Rbe1 {[%clk 0:01:26.1]} 20... Rxe2 {[%clk
0:02:39.2]} 21. Rxe2 {[%clk 0:01:27]} 21... Ng7 {[%clk 0:02:31.8]} 22. Kf1
{[%clk 0:01:19.5]} 22... Re8 {[%clk 0:02:27.9]} 23. g4 {[%clk 0:01:18]} 23...
Rxe2 {[%clk 0:02:27.2]} 24. Kxe2 {[%clk 0:01:18.9]} 24... Ne6 {[%clk 0:02:27.5]}
25. Be3 {[%clk 0:01:19.4]} 25... Kf8 {[%clk 0:02:25.6]} 26. Kd3 {[%clk
0:01:19.8]} 26... Ke7 {[%clk 0:02:25.1]} 27. Ke4 {[%clk 0:01:18.1]} 27... Kd7
{[%clk 0:02:24.7]} 28. Ne1 {[%clk 0:01:13.4]} 28... Nd8 {[%clk 0:02:21.1]} 29.
f4 {[%clk 0:01:09.1]} 29... Nc6 {[%clk 0:02:20.6]} 30. Nf3 {[%clk 0:01:07]}
30... Na5 {[%clk 0:02:19.8]} 31. Kd3 {[%clk 0:01:07.5]} 31... Nc6 {[%clk
0:02:14.8]} 32. Nd2 {[%clk 0:01:05.4]} 32... Nd8 {[%clk 0:02:10.5]} 33. Ne4
{[%clk 0:01:04.9]} 33... Be7 {[%clk 0:02:10.2]} 34. f5 {[%clk 0:00:56.7]} 34...
Nc6 {[%clk 0:02:06.5]} 35. Bf4 {[%clk 0:00:55.4]} 35... Na5 {[%clk 0:02:04.1]}
36. Nd2 {[%clk 0:00:52.7]} 36... Kc6 {[%clk 0:02:02.7]} 37. Ke4 {[%clk
0:00:46.5]} 37... Kd7 {[%clk 0:01:47.5]} 38. Kd3 {[%clk 0:00:45.3]} 38... Kc6
{[%clk 0:01:46.5]} 39. Nb3 {[%clk 0:00:45.7]} 39... Nb7 {[%clk 0:01:44.2]} 40.
Ke4 {[%clk 0:00:43.1]} 40... Kd7 {[%clk 0:01:42.5]} 41. Kd5 {[%clk 0:00:43.4]}
41... Bf6 {[%clk 0:01:39.1]} 42. g5 {[%clk 0:00:39.8]} 42... c6+ {[%clk
0:01:32.2]} 43. Ke4 {[%clk 0:00:39.7]} 43... Bd8 {[%clk 0:01:32.3]} 44. f6
{[%clk 0:00:39.4]} 44... Ke6 {[%clk 0:01:28.6]} 45. d5+ {[%clk 0:00:37.7]} 45...
Kd7 {[%clk 0:01:25.6]} 46. Nd4 {[%clk 0:00:36.8]} 46... Na5 {[%clk 0:01:24.2]}
47. Kd3 {[%clk 0:00:35.1]} 47... Bc7 {[%clk 0:01:20.2]} 48. h4 {[%clk
0:00:35.1]} 48... Bb8 {[%clk 0:01:17.4]} 49. Ne2 {[%clk 0:00:32.8]} 49... Nb7
{[%clk 0:01:14.5]} 50. Nd4 {[%clk 0:00:31.7]} 50... Na5 {[%clk 0:01:13.5]} 51.
Bc1 {[%clk 0:00:31.8]} 51... Bc7 {[%clk 0:01:12.7]} 52. Ba3 {[%clk 0:00:31.6]}
52... Bb8 {[%clk 0:01:11.7]} 53. Bb4 {[%clk 0:00:29.6]} 53... c5 {[%clk
0:01:06.2]} 54. Bxa5 {[%clk 0:00:29.9]} 54... cxd4 {[%clk 0:01:05.6]} 55. Bb4
{[%clk 0:00:30.4]} 55... dxc3 {[%clk 0:01:06.5]} 56. Bxc3 {[%clk 0:00:29.7]}
56... Bc7 {[%clk 0:01:06.7]} 57. Bd4 {[%clk 0:00:30.1]} 57... Kc8 {[%clk
0:01:06.3]} 58. Kc3 {[%clk 0:00:30.6]} 58... Kb7 {[%clk 0:01:06.7]} 59. Kb4
{[%clk 0:00:31.1]} 59... Ka6 {[%clk 0:01:06.3]} 60. Ka4 {[%clk 0:00:30.7]} 60...
Bb8 {[%clk 0:01:05.8]} 61. Bc3 {[%clk 0:00:29.8]} 61... Bc7 {[%clk 0:01:06.1]}
62. Bb4 {[%clk 0:00:30.2]} 62... Bb8 {[%clk 0:01:06.1]} 63. Kb3 {[%clk
0:00:30.3]} 63... Bc7 {[%clk 0:01:06.3]} 64. a4 {[%clk 0:00:30.7]} 64... Bb8
{[%clk 0:01:05.8]} 65. Kc2 {[%clk 0:00:29.6]} 65... Bc7 {[%clk 0:01:06.1]} 66.
h5 {[%clk 0:00:29.1]} 66... Bb8 {[%clk 0:01:05.5]} 67. Kd3 {[%clk 0:00:29.6]}
67... Bc7 {[%clk 0:01:05.1]} 68. Ke4 {[%clk 0:00:30.1]} 68... Bb8 {[%clk
0:01:05.1]} 69. hxg6 {[%clk 0:00:26.9]} 69... hxg6 {[%clk 0:01:04.5]} 70. Kd3
{[%clk 0:00:26.7]} 70... Bc7 {[%clk 0:01:04.3]} 71. Kc2 {[%clk 0:00:27.2]} 71...
Bb8 {[%clk 0:01:04.6]} 72. Kb3 {[%clk 0:00:27.9]} 72... Bc7 {[%clk 0:01:04.8]}
73. Bd2 {[%clk 0:00:28.6]} 73... Bb8 {[%clk 0:01:05.1]} 74. a5 {[%clk
0:00:27.8]} 74... Bc7 {[%clk 0:01:04.6]} 75. Ka4 {[%clk 0:00:23.9]} 75... Bb8
{[%clk 0:01:04.2]} 76. axb6 {[%clk 0:00:22.5]} 76... axb6 {[%clk 0:01:04.5]} 77.
Bb4 {[%clk 0:00:21.8]} 77... Bc7 {[%clk 0:01:04.9]} 78. Ba3 {[%clk 0:00:19.3]}
78... Bb8 {[%clk 0:01:05.2]} 79. Bb4 {[%clk 0:00:20]} 79... Bc7 {[%clk
0:01:05.5]} 80. Ba3 {[%clk 0:00:20.7]} 80... Bb8 {[%clk 0:01:05.8]} 81. Bb4
{[%clk 0:00:21.2]} 1/2-1/2

[Event "*** SCC Grand Prix: Titled Tuesday Blitz"]
[Site "Chess.com"]
[Date "2020.10.06"]
[Round "9"]
[White "Gabrielian_Artur"]
[Black "FMJoseHerrera"]
[Result "0-1"]
[WhiteElo "2728"]
[BlackElo "2568"]
[TimeControl "180+1"]
[EndTime "11:47:04 PDT"]
[Termination "FMJoseHerrera won by checkmate"]

1. e4 {[%clk 0:03:00.9]} 1... c5 {[%clk 0:02:59.6]} 2. Nf3 {[%clk 0:02:59.2]}
2... e6 {[%clk 0:02:59.9]} 3. d4 {[%clk 0:02:58.3]} 3... cxd4 {[%clk 0:03:00.8]}
4. Nxd4 {[%clk 0:02:58.7]} 4... a6 {[%clk 0:03:01]} 5. g3 {[%clk 0:02:57.3]}
5... Qc7 {[%clk 0:03:01.3]} 6. Bg2 {[%clk 0:02:57.1]} 6... b6 {[%clk 0:03:01.7]}
7. O-O {[%clk 0:02:55]} 7... Bb7 {[%clk 0:03:02]} 8. Re1 {[%clk 0:02:54.3]} 8...
d6 {[%clk 0:03:02.4]} 9. Nc3 {[%clk 0:02:53]} 9... Nd7 {[%clk 0:03:02.1]} 10.
Bg5 {[%clk 0:02:24.4]} 10... h6 {[%clk 0:01:15.9]} 11. Be3 {[%clk 0:02:19.8]}
11... Ngf6 {[%clk 0:01:14]} 12. f4 {[%clk 0:02:12]} 12... Be7 {[%clk 0:01:13.2]}
13. Bf2 {[%clk 0:02:10.2]} 13... g5 {[%clk 0:01:12.4]} 14. f5 {[%clk 0:02:09.1]}
14... e5 {[%clk 0:01:12.4]} 15. Ne6 {[%clk 0:02:07.7]} 15... fxe6 {[%clk
0:01:10.5]} 16. fxe6 {[%clk 0:02:08.1]} 16... Nf8 {[%clk 0:01:10]} 17. Nd5
{[%clk 0:02:07.9]} 17... Bxd5 {[%clk 0:01:09.7]} 18. exd5 {[%clk 0:02:08.1]}
18... h5 {[%clk 0:01:09.8]} 19. c4 {[%clk 0:02:01.4]} 19... h4 {[%clk
0:01:03.1]} 20. Qa4+ {[%clk 0:01:55.1]} 20... Kd8 {[%clk 0:00:46.6]} 21. Qb3
{[%clk 0:01:27]} 21... Rb8 {[%clk 0:00:45.2]} 22. Bf3 {[%clk 0:01:08.7]} 22...
hxg3 {[%clk 0:00:43.7]} 23. hxg3 {[%clk 0:01:08.6]} 23... Ng6 {[%clk 0:00:43.2]}
24. Kg2 {[%clk 0:00:44.4]} 24... g4 {[%clk 0:00:39.4]} 25. Be4 {[%clk
0:00:42.6]} 25... Nxe4 {[%clk 0:00:25.4]} 26. Rxe4 {[%clk 0:00:42.5]} 26... Rg8
{[%clk 0:00:26.3]} 27. Rh1 {[%clk 0:00:36.1]} 27... b5 {[%clk 0:00:24.6]} 28. c5
{[%clk 0:00:35.7]} 28... dxc5 {[%clk 0:00:23]} 29. d6 {[%clk 0:00:28.3]} 29...
Bxd6 {[%clk 0:00:21]} 30. Qd5 {[%clk 0:00:22.1]} 30... Ne7 {[%clk 0:00:20.3]}
31. Qd3 {[%clk 0:00:17.8]} 31... Kc8 {[%clk 0:00:20.8]} 32. Rh7 {[%clk 0:00:17]}
32... Rd8 {[%clk 0:00:20.6]} 33. Qe2 {[%clk 0:00:15.8]} 33... Qc6 {[%clk
0:00:21.1]} 34. Kg1 {[%clk 0:00:15.9]} 34... Kb7 {[%clk 0:00:21.5]} 35. Rxg4
{[%clk 0:00:15.1]} 35... Ka8 {[%clk 0:00:21.9]} 36. Rgg7 {[%clk 0:00:15.3]}
36... Re8 {[%clk 0:00:22.4]} 37. Be3 {[%clk 0:00:13.7]} 37... c4 {[%clk
0:00:22.2]} 38. Bg5 {[%clk 0:00:13.6]} 38... Bc5+ {[%clk 0:00:22.6]} 39. Kh2
{[%clk 0:00:14]} 39... Qxe6 {[%clk 0:00:23]} 40. Qe4+ {[%clk 0:00:13.4]} 40...
Rb7 {[%clk 0:00:23.6]} 41. Rh6 {[%clk 0:00:12.4]} 41... Qf5 {[%clk 0:00:22.3]}
42. Rxa6+ {[%clk 0:00:12.1]} 42... Ba7 {[%clk 0:00:22.4]} 43. Qc6 {[%clk
0:00:07.3]} 43... Qf2+ {[%clk 0:00:21.9]} 44. Kh3 {[%clk 0:00:06.7]} 44... Qf1+
{[%clk 0:00:22.5]} 45. Qg2 {[%clk 0:00:06.2]} 45... Qf5+ {[%clk 0:00:22.3]} 46.
g4 {[%clk 0:00:04.9]} 46... Rh8+ {[%clk 0:00:20.8]} 47. Bh4 {[%clk 0:00:05.3]}
47... Qd3+ {[%clk 0:00:16.3]} 48. Qg3 {[%clk 0:00:05.9]} 48... Qf1+ {[%clk
0:00:16]} 49. Qg2 {[%clk 0:00:06.5]} 49... Rxh4+ {[%clk 0:00:12.6]} 50. Kxh4
{[%clk 0:00:07]} 50... Qxg2 {[%clk 0:00:13]} 51. Kg5 {[%clk 0:00:07.6]} 51...
Kb8 {[%clk 0:00:11.7]} 52. Rf6 {[%clk 0:00:07]} 52... Be3+ {[%clk 0:00:11.7]}
53. Kh5 {[%clk 0:00:06.6]} 53... Qh3# {[%clk 0:00:12]} 0-1

[Event "*** SCC Grand Prix: Titled Tuesday Blitz"]
[Site "Chess.com"]
[Date "2020.10.06"]
[Round "9"]
[White "PavelChernomordik"]
[Black "Denis_Makhnyov"]
[Result "0-1"]
[WhiteElo "2359"]
[BlackElo "2847"]
[TimeControl "180+1"]
[EndTime "11:47:05 PDT"]
[Termination "Denis_Makhnyov won on time"]

1. e4 {[%clk 0:03:00.9]} 1... Nf6 {[%clk 0:02:57.8]} 2. Nc3 {[%clk 0:02:58.3]}
2... d5 {[%clk 0:02:57.1]} 3. e5 {[%clk 0:02:56.6]} 3... d4 {[%clk 0:02:57]} 4.
Nce2 {[%clk 0:02:56]} 4... Ne4 {[%clk 0:02:54.8]} 5. c3 {[%clk 0:02:55.2]} 5...
d3 {[%clk 0:02:24.1]} 6. Qa4+ {[%clk 0:02:52.9]} 6... Nc6 {[%clk 0:02:23.2]} 7.
Qxe4 {[%clk 0:02:51.8]} 7... dxe2 {[%clk 0:02:23.4]} 8. Bxe2 {[%clk 0:02:49.3]}
8... Be6 {[%clk 0:02:21.3]} 9. Nf3 {[%clk 0:02:43.4]} 9... Bd5 {[%clk
0:02:19.7]} 10. Qe3 {[%clk 0:02:43]} 10... e6 {[%clk 0:02:16.9]} 11. O-O {[%clk
0:02:35.1]} 11... Be7 {[%clk 0:02:08.4]} 12. d4 {[%clk 0:02:33.5]} 12... O-O
{[%clk 0:02:07.9]} 13. Rd1 {[%clk 0:02:30]} 13... Na5 {[%clk 0:01:34.3]} 14. b3
{[%clk 0:02:24.3]} 14... b6 {[%clk 0:01:32.7]} 15. c4 {[%clk 0:02:21.1]} 15...
Bb7 {[%clk 0:01:32.2]} 16. Bb2 {[%clk 0:01:58.4]} 16... Qd7 {[%clk 0:01:22.7]}
17. a3 {[%clk 0:01:47.5]} 17... b5 {[%clk 0:01:01.6]} 18. cxb5 {[%clk
0:01:40.9]} 18... Bd5 {[%clk 0:01:00.9]} 19. Nd2 {[%clk 0:01:29.9]} 19... c6
{[%clk 0:00:56.5]} 20. b4 {[%clk 0:01:23.6]} 20... Nb7 {[%clk 0:00:55.3]} 21.
bxc6 {[%clk 0:01:18.4]} 21... Bxc6 {[%clk 0:00:52.5]} 22. Ne4 {[%clk 0:01:11.8]}
22... Rfd8 {[%clk 0:00:43.1]} 23. Rac1 {[%clk 0:01:03.8]} 23... Ba4 {[%clk
0:00:38.3]} 24. Re1 {[%clk 0:00:56.8]} 24... Rac8 {[%clk 0:00:37.2]} 25. Ba6
{[%clk 0:00:48.8]} 25... Bc6 {[%clk 0:00:26.9]} 26. Nc5 {[%clk 0:00:44.4]} 26...
Qd5 {[%clk 0:00:22.6]} 27. Bf1 {[%clk 0:00:40.6]} 27... a5 {[%clk 0:00:19.2]}
28. Nxb7 {[%clk 0:00:37.9]} 28... Bxb7 {[%clk 0:00:18.7]} 29. b5 {[%clk
0:00:37.6]} 29... a4 {[%clk 0:00:18.4]} 30. h3 {[%clk 0:00:35.2]} 30... h6
{[%clk 0:00:17.9]} 31. Rxc8 {[%clk 0:00:31.1]} 31... Rxc8 {[%clk 0:00:16.8]} 32.
Rc1 {[%clk 0:00:31.2]} 32... Rd8 {[%clk 0:00:16.7]} 33. Rc7 {[%clk 0:00:28.3]}
33... Rd7 {[%clk 0:00:15.7]} 34. Qc3 {[%clk 0:00:24.8]} 34... Rxc7 {[%clk
0:00:12.5]} 35. Qxc7 {[%clk 0:00:23.5]} 35... Bg5 {[%clk 0:00:11.4]} 36. Qd6
{[%clk 0:00:16.3]} 36... Qe4 {[%clk 0:00:09.3]} 37. b6 {[%clk 0:00:13.7]} 37...
Kh7 {[%clk 0:00:07.4]} 38. Qc7 {[%clk 0:00:12.4]} 38... Bd5 {[%clk 0:00:04.6]}
39. Qc3 {[%clk 0:00:08.7]} 39... g6 {[%clk 0:00:03.3]} 40. f3 {[%clk 0:00:07.1]}
40... Be3+ {[%clk 0:00:02.6]} 41. Kh1 {[%clk 0:00:06.3]} 41... Qf4 {[%clk
0:00:02.4]} 42. Bc1 {[%clk 0:00:04.2]} 42... Bxc1 {[%clk 0:00:02.4]} 43. b7
{[%clk 0:00:01.9]} 43... Bxb7 {[%clk 0:00:02]} 0-1

[Event "*** SCC Grand Prix: Titled Tuesday Blitz"]
[Site "Chess.com"]
[Date "2020.10.06"]
[Round "9"]
[White "ozates"]
[Black "Ze-Pequeno"]
[Result "1-0"]
[WhiteElo "2375"]
[BlackElo "2239"]
[TimeControl "180+1"]
[EndTime "11:47:05 PDT"]
[Termination "ozates won by resignation"]

1. e4 {[%clk 0:03:00.9]} 1... e5 {[%clk 0:02:59.6]} 2. Nf3 {[%clk 0:03:00.6]}
2... Nc6 {[%clk 0:02:59.9]} 3. Bb5 {[%clk 0:02:59.5]} 3... a6 {[%clk 0:02:59.7]}
4. Ba4 {[%clk 0:02:59.4]} 4... Nf6 {[%clk 0:02:59.5]} 5. d3 {[%clk 0:02:58.9]}
5... Be7 {[%clk 0:02:59.5]} 6. O-O {[%clk 0:02:57.2]} 6... b5 {[%clk 0:02:58]}
7. Bb3 {[%clk 0:02:57.3]} 7... O-O {[%clk 0:02:56.5]} 8. c3 {[%clk 0:02:56.6]}
8... d6 {[%clk 0:02:56.4]} 9. Nbd2 {[%clk 0:02:56.2]} 9... Na5 {[%clk
0:02:56.5]} 10. Bc2 {[%clk 0:02:56]} 10... c5 {[%clk 0:02:57]} 11. a3 {[%clk
0:02:56.1]} 11... Re8 {[%clk 0:02:55.7]} 12. Re1 {[%clk 0:02:56.6]} 12... Bf8
{[%clk 0:02:55.7]} 13. Nf1 {[%clk 0:02:57.1]} 13... g6 {[%clk 0:02:55.6]} 14. d4
{[%clk 0:02:55.2]} 14... Bb7 {[%clk 0:02:42]} 15. Ng3 {[%clk 0:02:52.9]} 15...
Bg7 {[%clk 0:02:39.5]} 16. h4 {[%clk 0:02:52.4]} 16... h5 {[%clk 0:02:38.2]} 17.
Bg5 {[%clk 0:02:51.6]} 17... Qc7 {[%clk 0:02:36.5]} 18. Rc1 {[%clk 0:02:42.6]}
18... Rac8 {[%clk 0:02:35.4]} 19. Bd3 {[%clk 0:02:35.7]} 19... Qb6 {[%clk
0:02:30.1]} 20. d5 {[%clk 0:02:33.8]} 20... c4 {[%clk 0:02:29]} 21. Bc2 {[%clk
0:02:31.4]} 21... Rb8 {[%clk 0:02:25.7]} 22. Qd2 {[%clk 0:02:28.4]} 22... Bc8
{[%clk 0:02:19.3]} 23. Nh2 {[%clk 0:01:55.7]} 23... Nb7 {[%clk 0:02:17.5]} 24.
Bd1 {[%clk 0:01:54.7]} 24... Nc5 {[%clk 0:02:14.2]} 25. Bc2 {[%clk 0:01:47.7]}
25... a5 {[%clk 0:02:09.4]} 26. Kh1 {[%clk 0:01:44.2]} 26... b4 {[%clk
0:02:04.8]} 27. f4 {[%clk 0:01:43.9]} 27... exf4 {[%clk 0:02:03.7]} 28. Qxf4
{[%clk 0:01:43]} 28... Nh7 {[%clk 0:02:00]} 29. Rf1 {[%clk 0:01:33.9]} 29... Rb7
{[%clk 0:02:00]} 30. axb4 {[%clk 0:01:30.2]} 30... axb4 {[%clk 0:01:59.1]} 31.
Bh6 {[%clk 0:01:28.5]} 31... b3 {[%clk 0:01:40.8]} 32. Bb1 {[%clk 0:01:25.8]}
32... Qd8 {[%clk 0:01:31.9]} 33. Bxg7 {[%clk 0:01:24.7]} 33... Kxg7 {[%clk
0:01:31.6]} 34. Nf3 {[%clk 0:01:10.3]} 34... Bg4 {[%clk 0:01:18]} 35. Ng5 {[%clk
0:01:04.6]} 35... Nxg5 {[%clk 0:01:01.3]} 36. hxg5 {[%clk 0:01:04.1]} 36... Qe7
{[%clk 0:00:57.9]} 37. Rce1 {[%clk 0:01:02.2]} 37... Qe5 {[%clk 0:00:57.3]} 38.
Qf6+ {[%clk 0:00:58.4]} 38... Qxf6 {[%clk 0:00:52.3]} 39. Rxf6 {[%clk
0:00:59.3]} 39... Rd7 {[%clk 0:00:51.6]} 40. Re3 {[%clk 0:00:51.2]} 40... Re5
{[%clk 0:00:51.2]} 41. Rf4 {[%clk 0:00:45.2]} 41... Rxg5 {[%clk 0:00:50.9]} 42.
Kg1 {[%clk 0:00:45.6]} 42... Re5 {[%clk 0:00:50.7]} 43. Nf1 {[%clk 0:00:39.7]}
43... Rde7 {[%clk 0:00:48.1]} 44. Nd2 {[%clk 0:00:39.7]} 44... Nd3 {[%clk
0:00:40.5]} 45. Bxd3 {[%clk 0:00:34.8]} 45... cxd3 {[%clk 0:00:40.6]} 46. Rxd3
{[%clk 0:00:35.7]} 46... Be2 {[%clk 0:00:36.2]} 47. Re3 {[%clk 0:00:35]} 47...
Ba6 {[%clk 0:00:36.6]} 48. Rf2 {[%clk 0:00:16.5]} 48... f5 {[%clk 0:00:33]} 49.
Nxb3 {[%clk 0:00:13.1]} 49... fxe4 {[%clk 0:00:27.4]} 50. Nd4 {[%clk 0:00:11.1]}
50... Rxd5 {[%clk 0:00:25.4]} 51. b4 {[%clk 0:00:11]} 51... Bd3 {[%clk
0:00:23.2]} 52. Rb2 {[%clk 0:00:10]} 52... Rc7 {[%clk 0:00:22.1]} 53. Ne6+
{[%clk 0:00:08]} 53... Kf6 {[%clk 0:00:16.1]} 54. Nxc7 {[%clk 0:00:08.9]} 1-0